bitfinex-derivatives/quotes_ETHF0:USTF0_20250327
["timestamp","ask_amount","ask_price","bid_price","bid_amount"]
[1743083514983,2.50132,1999.5,1999.1,0.00750169]
[1743083514984,4.20848,1999.2,1999.1,0.00750169]
[1743083515479,5.7078,1999.2,1998.5,5.71031]
[1743083515682,11.53957,1999.2,1998.5,4.5092]
[1743083515883,1.00087,1998.9,1998.8,1.00086]
[1743083516078,8.33171,1999.2,1998.9,1.00082]
[1743083516282,1.00084,1998.9,1998.8,1.00084]
[1743083516484,2.50183,1999.1,1998.8,1.00086]
[1743083516787,1.00087,1998.9,1998.8,1.00086]
[1743083516990,1.00088,1998.8,1998.7,0.00750169]
[1743083517179,1.00088,1998.8,1998.7,1.00843169]
[1743083517379,1.00088,1998.8,1998.7,0.00750169]
[1743083517784,4.20868,1998.8,1998.7,0.00750169]
[1743083518084,6.70868,1998.8,1998.7,0.00750169]
[1743083518284,6.70868,1998.8,1998.1,55.0063]
[1743083518285,1.00101,1998.6,1998.5,1.00102]
[1743083518887,1.00103,1998.5,1998.4,1.00105]
[1743083519180,2.31573,1998.5,1998.3,1.00109]
[1743083519384,1.3147,1998.5,1998.4,1.00108]
[1743083519585,2.31573,1998.5,1998.3,1.00610744]
[1743083519892,1.00108,1998.4,1998.3,0.00502744]
[1743083520083,2.34278,1998.4,1998.3,0.00502744]
[1743083520281,5.61668543,1998.4,1998.3,0.00502744]
[1743083520492,7.11560543,1998.4,1997.7,7.0838]
[1743083520691,1.00115,1998.3,1997.8,3.85062]
[1743083520899,1.3417,1998.2,1998.1,1.00123]
[1743083521390,1.40780543,1998.2,1998.1,1.00123]
[1743083521586,1.47391157,1998.2,1998.0,1.00126]
[1743083522091,1.00128,1998.0,1997.7,3.2078]
[1743083522297,1.3417,1997.9,1997.6,1.3472]
[1743083522496,2.34304,1997.9,1997.7,1.0014]
[1743083522696,0.19831913,1997.8,1997.7,1.0014]
[1743083522893,1.56101913,1997.8,1997.7,1.0014]
[1743083523392,0.19831913,1997.8,1997.7,4.2092]
[1743083523790,1.00124,1998.1,1997.9,0.79818803]
[1743083524193,2.36398,1998.0,1997.8,2.34884]
[1743083524396,2.364,1998.0,1997.8,2.34884]
[1743083524895,1.3627,1998.0,1997.8,1.3475]
[1743083525092,1.3627,1998.0,1997.9,1.00133]
[1743083525293,2.364,1998.0,1997.8,2.34885]
[1743083525489,3.2078,1997.9,1997.5,7.0628]
[1743083525690,1.00145,1997.7,1997.5,2.34899]
[1743083525902,1.4253,1997.6,1997.5,2.34899]
[1743083526402,5.83,1998.0,1997.5,4.5553]
[1743083526697,2.42663,1997.9,1997.6,1.00144]
[1743083527200,1.00138,1997.8,1997.6,1.00144]
[1743083527401,1.4253,1997.7,1997.6,1.00144]
[1743083527906,1.4253,1997.7,1997.5,5.5568]
[1743083528200,2.42677,1997.7,1997.5,5.5568]
[1743083528400,1.4253,1997.7,1997.5,5.5568]
[1743083528903,1.4253,1997.7,1997.5,4.20929]
[1743083529593,2.42673,1997.7,1997.5,3.2078]
[1743083530100,0.06096743,1997.6,1997.5,4.20933]
[1743083530598,0.06808348,1997.6,1997.4,52.86584]
[1743083530796,0.06808348,1997.6,1997.3,1.00162]
[1743083530797,1.4103,1997.5,1997.3,1.00162]
[1743083531093,1.4103,1997.5,1997.0,3.2078]
[1743083531094,2.6261,1997.5,1997.4,1.00158]
[1743083531295,2.6261,1997.5,1997.1,3.826]
[1743083531600,2.6261,1997.5,1997.4,1.00158]
[1743083531790,2.6261,1997.5,1997.4,0.93349652]
[1743083532391,2.6261,1997.5,1997.4,1.00158]
[1743083532793,2.6261,1997.5,1997.2,10.95426]
[1743083532994,2.6261,1997.5,1997.4,1.00158]
[1743083533597,3.62766,1997.5,1997.3,1.00159]
[1743083533798,3.62766,1997.5,1997.2,8.4501]
[1743083533799,2.6261,1997.5,1997.2,4.6241]
[1743083534004,3.62765,1997.5,1997.3,1.00159]
[1743083534206,3.62765,1997.5,1997.2,4.6241]
[1743083534207,2.6261,1997.5,1997.4,1.00158]
[1743083535208,1.4103,1997.5,1997.4,1.00158]
[1743083536199,0.00750169,1997.6,1997.5,1.00153]
[1743083536405,0.00750169,1997.6,1997.5,2.40443]
[1743083537603,9.0378,1998.5,1997.9,2.50322]
[1743083537803,1.00129,1998.0,1997.7,3.2078]
[1743083538009,1.3275,1997.9,1997.8,1.00138]
[1743083538509,2.32884,1997.9,1997.7,2.3136]
[1743083538707,1.3275,1997.9,1997.8,1.00138]
[1743083539604,2.32883,1997.9,1997.8,1.00138]
[1743083540202,1.3275,1997.9,1997.8,1.00138]
[1743083543609,1.00138,1997.8,1997.7,1.0014]
[1743083543797,1.3275,1997.9,1997.7,1.00138]
[1743083543999,1.3275,1997.9,1997.5,3.2078]
[1743083544200,1.00142,1997.8,1997.7,1.00139]
[1743083544908,1.00142,1997.8,1997.7,1.0014]
[1743083545305,2.42642,1997.8,1997.7,1.0014]
[1743083545705,2.42638,1997.8,1997.7,1.0014]
[1743083546209,2.42638,1997.8,1997.5,3.2078]
[1743083546511,1.00143,1997.7,1997.6,1.00144]
[1743083546712,1.425,1997.7,1997.6,1.00148]
[1743083547213,2.42643,1997.7,1997.6,1.00148]
[1743083547606,1.00153,1997.5,1997.4,0.00750169]
[1743083547810,1.00153,1997.5,1997.4,1.00902169]
[1743083548311,1.0015,1997.6,1997.5,1.00148]
[1743083548609,1.00153,1997.5,1997.4,1.00904169]
[1743083548808,1.00153,1997.5,1997.4,0.00750169]
[1743083549005,1.00153,1997.5,1997.4,1.00908169]
[1743083549608,1.00153,1997.5,1997.4,0.00750169]
[1743083549812,1.00173,1997.1,1997.0,1.00176]
[1743083550114,1.00177,1997.1,1997.0,1.00175]
[1743083550310,1.00183,1996.9,1996.8,2.30255]
[1743083550615,1.00183,1996.9,1996.7,3.2078]
[1743083550810,1.3434,1996.8,1996.7,5.51043]
[1743083551708,0.00750169,1997.0,1996.9,1.00183]
[1743083551909,0.00750169,1997.0,1996.9,4.20963]
[1743083553109,0.00750169,1997.0,1996.9,7.95763]
[1743083553310,0.00750169,1997.0,1996.9,4.20963]
[1743083553506,1.30290169,1997.0,1996.9,4.20963]
[1743083555403,2.30468169,1997.0,1996.9,3.2078]
[1743083555606,1.30290169,1997.0,1996.9,4.20963]
[1743083556207,2.30468169,1997.0,1996.9,3.2078]
[1743083556715,1.30290169,1997.0,1996.9,3.2078]
[1743083557013,1.30290169,1997.0,1996.9,4.20963]
[1743083557209,0.00750169,1997.0,1996.9,4.20963]
[1743083557908,0.00750169,1997.0,1996.9,3.2078]
[1743083558114,0.00750169,1997.0,1996.9,4.20963]
[1743083559715,0.00750169,1997.0,1996.9,5.58313]
[1743083560115,0.00750169,1997.0,1996.9,5.84103]
[1743083560815,0.00750169,1997.0,1996.9,5.58313]
[1743083562010,1.00153,1997.5,1997.4,1.00155]
[1743083562207,1.00163,1997.3,1997.2,1.00163]
[1743083562409,10.65281,1997.6,1997.5,1.00153]
[1743083562410,1.2233,1997.6,1997.5,1.00153]
[1743083563416,2.5191,1997.6,1997.5,1.00153]
[1743083564219,3.52058,1997.6,1997.5,1.00153]
[1743083564514,1.00153,1997.5,1997.4,1.00904169]
[1743083564717,1.00163,1997.3,1997.2,1.00165]
[1743083564915,2.50402,1997.4,1996.9,4.569]
[1743083565105,1.2958,1997.2,1997.1,1.00167]
[1743083565614,2.29748,1997.2,1997.1,1.00167]
[1743083566216,1.2958,1997.2,1997.1,1.00167]
[1743083568907,1.2958,1997.2,1997.1,4.20947]
[1743083569113,5.83,1997.4,1997.3,1.00163]
[1743083569423,1.402,1997.5,1997.4,1.00158]
[1743083569620,1.402,1997.5,1997.4,2.34338]
[1743083571516,0.00750169,1997.7,1997.6,1.00148]
[1743083571719,0.00750169,1997.7,1997.6,4.20928]
[1743083573728,0.00750169,1997.7,1997.4,4.5496]
[1743083574023,2.40787169,1997.7,1997.6,1.00148]
[1743083574209,1.40640169,1997.7,1997.6,4.20928]
[1743083574519,2.40783169,1997.7,1997.6,1.00148]
[1743083574720,1.40640169,1997.7,1997.4,6.9108]
[1743083574923,1.2598,1997.6,1997.5,1.00153]
[1743083575114,2.26128,1997.6,1997.5,1.00153]
[1743083575316,3.63488,1997.6,1997.5,1.00153]
[1743083575518,4.82899,1997.6,1997.5,1.00153]
[1743083575715,3.8275,1997.6,1997.4,4.20934]
[1743083575919,1.00153,1997.5,1997.4,4.20934]
[1743083576112,2.37513,1997.5,1997.4,4.20934]
[1743083576622,1.3736,1997.5,1997.4,4.20934]
[1743083577023,1.44168348,1997.5,1997.4,4.20934]
[1743083577316,1.0017,1997.2,1997.1,1.0017]
[1743083577525,1.00164,1997.3,1997.0,5.71222]
[1743083577722,1.3909,1997.2,1997.1,1.00173]
[1743083578228,1.45898348,1997.2,1997.1,1.00173]
[1743083580718,1.00173,1997.1,1997.0,1.00174]
[1743083580920,1.2784,1997.1,1997.0,1.00174]
[1743083581119,2.57068348,1997.1,1997.0,1.00174]
[1743083581315,3.94428348,1997.1,1996.8,4.5073]
[1743083581522,4.94602348,1997.1,1996.7,2.50483]
[1743083581826,3.94428348,1997.1,1996.8,3.2078]
[1743083582020,4.94605348,1997.1,1996.9,1.00179]
[1743083582318,0.06808348,1997.0,1996.9,1.00179]
[1743083582714,1.44168348,1997.0,1996.9,1.00179]
[1743083583621,1.44168348,1997.0,1996.9,2.43089]
[1743083584526,1.44168348,1997.0,1996.9,1.00179]
[1743083585114,1.44168348,1997.0,1996.9,2.43089]
[1743083585321,1.44168348,1997.0,1996.9,1.00179]
[1743083585526,1.44168348,1997.0,1996.8,3.2078]
[1743083585827,2.44346348,1997.0,1996.9,1.00183]
[1743083586030,1.44168348,1997.0,1996.9,1.00183]
[1743083586219,1.44168348,1997.0,1996.9,2.43093]
[1743083586525,1.50976696,1997.0,1996.9,2.43093]
[1743083586829,0.13616696,1997.0,1996.9,2.43093]
[1743083588126,0.13616696,1997.0,1996.8,3.2078]
[1743083588426,1.48986696,1996.9,1996.8,4.20968]
[1743083588623,2.70216696,1996.9,1996.8,4.20968]
[1743083589018,3.70399696,1996.9,1996.8,4.20968]
[1743083589219,2.70216696,1996.9,1996.6,3.2078]
[1743083589422,1.00189,1996.8,1996.7,1.00191]
[1743083589626,3.77457696,1996.8,1996.7,1.00193]
[1743083589819,2.77266696,1996.8,1996.7,1.00193]
[1743083590424,2.77266696,1996.8,1996.7,2.42163]
[1743083590723,0.13616696,1996.8,1996.7,2.42163]
[1743083590924,0.13616696,1996.8,1996.7,6.12563]
[1743083593032,5.83,1997.0,1996.9,0.79965842]
[1743083593221,5.83,1997.0,1996.9,4.00745842]
[1743083594529,6.83178,1997.0,1996.9,1.00183]
[1743083594740,5.83,1997.0,1996.9,1.00183]
[1743083595032,4.5775,1997.1,1996.7,3.2078]
[1743083595228,2.5047,1996.8,1996.1,1.2789]
[1743083595432,3.9123,1996.7,1996.4,1.00206]
[1743083595735,1.00206,1996.5,1996.1,7.00918]
[1743083595931,1.4252,1996.4,1996.3,4.20989]
[1743083596125,1.4252,1996.4,1996.1,4.5037]
[1743083596326,1.00214,1996.3,1996.1,3.2078]
[1743083596635,1.4252,1996.2,1996.1,4.20999]
[1743083596934,2.6442,1996.2,1996.1,4.20999]
[1743083597530,1.219,1996.5,1996.4,1.00208]
[1743083597737,2.6442,1996.5,1996.4,1.00208]
[1743083598538,2.6442,1996.5,1996.1,3.2078]
[1743083598733,3.64625,1996.5,1996.3,1.00211]
[1743083599037,1.00214,1996.3,1996.1,1.00221]
[1743083599231,2.6442,1996.5,1996.1,1.00221]
[1743083599232,1.3951,1996.2,1996.1,1.00221]
[1743083599738,1.4090571,1996.2,1996.1,4.21001]
[1743083600333,1.219,1996.5,1996.4,1.00208]
[1743083600531,1.3951,1996.5,1996.4,4.20988]
[1743083600726,0.00750169,1996.6,1996.5,1.00203]
[1743083600934,1.3951,1996.9,1996.8,1.00188]
[1743083601626,1.3951,1996.9,1996.7,1.3372]
[1743083601832,1.3951,1996.9,1996.8,0.9879229]
[1743083602235,1.3951,1996.9,1996.8,4.1957229]
[1743083602836,1.3951,1996.9,1996.8,1.00188]
[1743083603437,1.3951,1996.9,1996.8,2.31928]
[1743083604229,1.43526928,1996.9,1996.8,2.31928]
[1743083605134,0.04016928,1996.9,1996.8,2.31928]
[1743083605639,1.2973,1997.2,1996.9,1.00183]
[1743083605837,1.2973,1997.2,1997.1,1.00173]
[1743083607639,1.2973,1997.2,1997.0,4.6419]
[1743083608436,0.00750169,1997.3,1997.0,4.6419]
[1743083608638,0.00750169,1997.3,1997.2,4.20948]
[1743083610036,0.03763467,1997.3,1997.2,4.20948]
[1743083610642,0.06776782,1997.3,1997.2,4.20948]
[1743083611235,1.2968,1997.6,1997.5,1.00153]
[1743083611637,1.2968,1997.6,1997.4,3.2078]
[1743083611834,2.29829,1997.6,1997.2,4.5403]
[1743083612039,1.2968,1997.6,1997.4,1.00156]
[1743083612240,1.2968,1997.6,1997.4,1.00157]
[1743083612843,2.29828,1997.6,1997.4,1.00157]
[1743083613041,1.00154,1997.5,1997.2,3.2078]
[1743083613249,2.29831,1997.6,1997.3,1.00161]
[1743083613639,2.29831,1997.6,1997.2,3.2078]
[1743083613640,1.2968,1997.6,1997.2,3.2078]
[1743083614442,10.8298,1997.6,1996.9,53.6998]
[1743083615346,10.8298,1997.6,1997.1,3.2078]
[1743083615647,1.00153,1997.5,1997.1,3.2078]
[1743083615848,1.00153,1997.5,1997.4,1.00158]
[1743083616248,10.8298,1997.6,1997.5,1.00153]
[1743083616850,11.83128,1997.6,1997.5,1.00153]
[1743083617041,1.00156,1997.5,1997.4,1.00155]
[1743083617244,10.8298,1997.6,1997.1,3.2078]
[1743083617442,1.00159,1997.4,1997.3,1.00158]
[1743083617749,1.00156,1997.5,1997.4,1.00154]
[1743083617942,1.00161,1997.4,1997.3,1.00159]
[1743083618440,2.50419,1997.3,1996.7,8.22478169]
[1743083618648,1.2513,1997.2,1996.7,3.21530169]
[1743083618846,1.00188,1996.8,1996.7,0.00750169]
[1743083619348,1.00187,1996.9,1996.7,1.00940169]
[1743083619649,1.00197,1996.7,1996.5,4.70501]
[1743083619847,1.3147,1996.6,1996.5,1.00201]
[1743083620445,1.3147,1996.6,1996.4,3.2078]
[1743083620644,1.3147,1996.6,1996.3,1.00212]
[1743083620851,1.00216,1996.3,1996.1,4.20999]
[1743083621050,2.5051,1996.5,1996.1,3.2078]
[1743083621244,1.3147,1996.2,1996.1,4.21001]
[1743083622055,1.3147,1996.2,1996.1,5.58921]
[1743083622647,1.25880169,1996.7,1996.6,1.00198]
[1743083622846,1.31760169,1996.7,1996.6,1.00198]
[1743083623352,2.72560169,1996.7,1996.6,1.00198]
[1743083623552,2.72560169,1996.7,1996.5,3.2078]
[1743083623757,1.00198,1996.6,1996.5,4.20981]
[1743083623944,1.00203,1996.5,1996.3,3.2078]
[1743083624146,1.408,1996.4,1996.3,4.20993]
[1743083625155,1.408,1996.4,1996.3,3.2078]
[1743083625355,1.408,1996.4,1996.3,4.20993]
[1743083626452,1.31760169,1996.7,1996.5,1.002]
[1743083626651,0.00750169,1996.7,1996.6,1.00198]
[1743083626853,0.00750169,1996.7,1996.6,2.40008]
[1743083627149,0.00750169,1996.7,1996.6,4.90008]
[1743083627341,2.33409,1997.2,1997.0,1.00175]
[1743083627756,2.33409,1997.2,1996.9,4.6059]
[1743083627757,1.00173,1997.1,1996.9,5.60769]
[1743083627952,1.3324,1997.0,1996.9,5.60769]
[1743083628658,0.00750169,1997.1,1997.0,1.00178]
[1743083629054,1.00923169,1997.1,1996.9,4.20959]
[1743083629255,1.00923169,1997.1,1997.0,1.00178]
[1743083629256,0.00750169,1997.1,1997.0,1.00178]
[1743083629550,1.36640169,1997.1,1997.0,2.32858]
[1743083632149,1.36640169,1997.1,1997.0,1.00178]
[1743083632349,1.36640169,1997.1,1997.0,2.38808]
[1743083632757,1.36640169,1997.1,1997.0,1.00178]
[1743083633557,1.36640169,1997.1,1996.9,3.2078]
[1743083633856,1.00189,1996.8,1996.7,3.2078]
[1743083634161,1.00186,1996.9,1996.7,3.2078]
[1743083634360,2.62128348,1996.8,1996.7,4.2097]
[1743083635058,2.62128348,1996.8,1996.7,7.9117]
[1743083635059,0.06808348,1996.8,1996.7,7.9117]
[1743083635565,0.06808348,1996.8,1996.7,9.3405]
[1743083636351,1.4036,1997.0,1996.7,10.8386]
[1743083636559,1.4036,1997.0,1996.9,4.20963]
[1743083636759,1.00151,1997.6,1997.4,1.00156]
[1743083636962,1.4036,1997.5,1997.2,3.2078]
[1743083637157,2.7046,1997.5,1997.2,4.20944]
[1743083637357,1.00161,1997.4,1997.3,1.00163]
[1743083637562,1.4036,1997.4,1997.2,4.20946]
[1743083637863,1.4036,1997.4,1997.1,1.00169]
[1743083637864,1.00167,1997.3,1997.1,1.00169]
[1743083638163,1.3263,1997.2,1997.1,1.00919169]
[1743083643659,1.39438348,1997.2,1997.1,1.00919169]
[1743083645265,0.00750169,1997.5,1997.4,1.00158]
[1743083645466,1.39280169,1997.5,1997.4,1.00158]
[1743083645859,1.00158,1997.4,1997.3,3.2078]
[1743083646058,1.00158,1997.4,1997.3,1.00163]
[1743083646266,5.19853169,1997.5,1997.1,3.70850169]
[1743083646467,2.38694,1997.3,1997.2,1.00165]
[1743083646668,1.3853,1997.3,1997.2,4.20945]
[1743083646865,0.00750169,1997.5,1997.4,1.00158]
[1743083647556,1.33680169,1997.5,1997.4,2.35768]
[1743083647755,1.33680169,1997.5,1997.4,5.56548]
[1743083648367,0.00750169,1997.5,1997.4,5.56548]
[1743083649276,1.00167,1997.3,1997.1,1.00921169]
[1743083649472,2.6199,1997.2,1997.1,1.00921169]
[1743083650061,3.62158,1997.2,1997.1,1.00921169]
[1743083650264,2.6199,1997.2,1997.1,1.00921169]
[1743083651074,2.6199,1997.2,1997.1,2.33111169]
[1743083651667,2.6199,1997.2,1997.1,1.00923169]
[1743083652168,2.6199,1997.2,1997.1,2.33113169]
[1743083652679,2.6199,1997.2,1997.1,1.00923169]
[1743083652973,2.68798348,1997.2,1997.1,1.00923169]
[1743083653967,3.68966348,1997.2,1997.1,0.00750169]
[1743083654275,5.19220348,1997.2,1996.8,3.2078]
[1743083654569,1.00183,1996.9,1996.8,1.00184]
[1743083654772,0.06808348,1996.9,1996.6,7.01994]
[1743083654967,0.06808348,1996.9,1996.8,4.20963]
[1743083655566,0.06808348,1996.9,1996.8,7.90963]
[1743083655764,1.2906,1997.2,1996.8,8.2151]
[1743083655966,1.2906,1997.2,1997.1,4.20953]
[1743083656376,3.2078,1997.9,1997.1,4.20953]
[1743083656573,3.2078,2000.1,1998.4,3.2078]
[1743083656770,50.485,2001.6,1998.4,3.2078]
[1743083656771,2.49998,2000.6,1999.9,3.2078]
[1743083657074,50.485,2001.6,1999.9,3.2078]
[1743083657075,49.53614178,2000.2,2000.1,3.2078]
[1743083657372,49.53614178,2000.2,1999.7,3.2078]
[1743083657562,52.74394178,2000.2,1999.9,0.00750169]
[1743083657764,52.74394178,2000.2,1999.7,3.744]
[1743083657972,49.53614178,2000.2,1999.7,3.744]
[1743083658173,49.53614178,2000.2,1999.5,3.2078]
[1743083658370,3.2078,1999.8,1999.3,3.2078]
[1743083658572,3.83756819,2000.4,1999.5,3.2078]
[1743083658573,3.2078,2000.1,1999.5,3.2078]
[1743083658775,3.2078,2000.1,1999.7,1.0004]
[1743083658978,0.00750169,2000.0,1999.9,1.0003]
[1743083659478,0.04650433,2000.0,1999.9,4.2081]
[1743083659875,1.3454,2000.8,1999.9,9.4648]
[1743083660078,1.3454,2000.8,2000.7,0.97097235]
[1743083660468,1.3454,2000.8,2000.5,1.0]
[1743083660673,1.3454,2000.8,2000.7,0.99993]
[1743083660873,4.5532,2000.8,2000.7,0.99993]
[1743083661370,1.3454,2000.8,2000.7,0.99993]
[1743083661678,1.3454,2000.8,2000.4,3.76]
[1743083661679,7.0532,2000.8,2000.2,6.9818]
[1743083661873,5.55311,2000.8,2000.2,6.9818]
[1743083662271,4.5532,2000.8,2000.2,3.2078]
[1743083662476,4.5532,2000.8,2000.4,1.00006]
[1743083662675,4.5532,2000.8,1999.8,4.5352]
[1743083662676,3.2078,2000.5,1999.8,4.5352]
[1743083662877,3.2078,2000.2,2000.0,1.00024]
[1743083663084,3.2078,2000.2,1999.6,3.21530169]
[1743083663085,3.2078,2000.2,1999.9,1.0003]
[1743083663283,3.2078,2000.2,2000.0,1.00027]
[1743083663587,3.2078,2000.2,1999.6,3.21530169]
[1743083663780,3.2078,2000.2,2000.1,1.00022]
[1743083664084,5.47666,2000.7,2000.4,1.00006]
[1743083664384,5.47664,2000.7,2000.4,1.00007]
[1743083664771,5.47666,2000.7,2000.2,3.2078]
[1743083664972,5.47664,2000.7,2000.2,3.2078]
[1743083665171,5.47664,2000.7,2000.3,1.00011]
[1743083665370,1.00004,2000.5,2000.1,1.0002]
[1743083665774,3.2078,2000.4,1999.9,3.798]
[1743083665978,1.05710558,2000.2,1999.9,3.798]
[1743083666273,3.2078,2000.1,1999.6,0.00750169]
[1743083666577,1.00031,2000.0,1999.6,1.00795169]
[1743083666777,3.2078,2000.1,1999.7,1.00041]
[1743083666977,1.00034,1999.9,1999.6,1.00797169]
[1743083667177,3.2078,1999.9,1999.6,1.00797169]
[1743083667488,0.06795596,1999.8,1999.7,1.00043]
[1743083667677,0.06795596,1999.8,1999.6,0.00750169]
[1743083667881,0.06795596,1999.8,1999.6,1.00795169]
[1743083668182,0.06795596,1999.8,1999.7,1.00043]
[1743083668684,1.36575596,1999.8,1999.7,1.00043]
[1743083669084,1.36575596,1999.8,1999.6,1.00794169]
[1743083669285,1.00043,1999.7,1999.6,0.00750169]
[1743083669474,1.00048,1999.6,1999.2,3.2078]
[1743083669790,1.2978,1999.6,1999.2,3.2078]
[1743083669979,1.2978,1999.6,1999.3,1.0006]
[1743083670284,1.00053,1999.5,1999.2,4.20844]
[1743083670478,1.36575596,1999.4,1999.2,3.2078]
[1743083670675,1.00063,1999.3,1999.2,0.00750169]
[1743083670982,1.36575596,1999.4,1999.2,0.00750169]
[1743083671177,1.36575596,1999.4,1999.3,1.00063]
[1743083671373,1.36575596,1999.4,1999.2,1.00814169]
[1743083671577,0.06795596,1999.3,1999.2,0.00750169]
[1743083671784,1.06858596,1999.3,1999.2,0.00750169]
[1743083671983,0.06795596,1999.3,1999.2,0.00750169]
[1743083672389,0.06795596,1999.3,1999.2,1.00818169]
[1743083673086,0.06795596,1999.3,1999.2,3.21530169]
[1743083673281,1.06858596,1999.3,1999.2,0.00750169]
[1743083673482,0.12387667,1999.3,1999.2,0.00750169]
[1743083673980,1.51851192,1999.3,1999.2,0.00750169]
[1743083674389,1.51851192,1999.3,1999.2,4.21598169]
[1743083674577,1.51851192,1999.3,1999.2,8.01398169]
[1743083675287,0.13591192,1999.3,1999.2,8.01398169]
[1743083676283,0.00750169,2000.0,1999.9,1.00033]
[1743083676488,0.00750169,2000.0,1999.9,4.20813]
[1743083676489,1.38180169,2000.0,1999.9,4.20813]
[1743083676985,1.38180169,2000.0,1999.8,4.80733]
[1743083677288,1.38180169,2000.0,1999.8,3.807]
[1743083677487,1.38180169,2000.0,1999.5,3.2078]
[1743083677692,1.00041,1999.8,1999.5,4.20832]
[1743083677891,1.3954,1999.7,1999.5,4.20831]
[1743083678194,1.3954,1999.7,1999.5,1.00052]
[1743083678488,1.3954,1999.7,1999.6,1.00048]
[1743083678688,0.00750169,2000.0,1999.5,5.70909]
[1743083678885,1.3954,1999.9,1999.8,4.20818]
[1743083679388,3.2078,2000.6,1999.8,5.7078]
[1743083679579,3.2078,2000.6,2000.4,1.00004]
[1743083679780,3.2078,2000.6,2000.5,1.00002]
[1743083680585,0.00750169,2000.8,2000.7,0.99993]
[1743083680789,0.99994,2000.7,2000.4,3.2078]
[1743083680987,0.00750169,2000.8,2000.5,4.80598]
[1743083681195,1.00739169,2000.8,2000.6,0.99994]
[1743083681385,0.00750169,2000.8,2000.7,0.99993]
[1743083681591,1.00740169,2000.8,2000.6,0.99996]
[1743083681786,1.00740169,2000.8,2000.6,0.99995]
[1743083682087,1.00740169,2000.8,2000.5,3.806]
[1743083682088,0.00750169,2000.8,2000.7,0.99993]
[1743083682492,1.35450169,2000.8,2000.7,0.99993]
[1743083684190,1.35450169,2000.8,2000.5,6.29905]
[1743083684191,1.35450169,2000.8,2000.5,3.799]
[1743083684385,0.00750169,2000.8,2000.7,0.99993]
[1743083684586,0.00750169,2000.8,2000.7,4.20773]
[1743083685494,0.00750169,2000.8,2000.7,4.90760712]
[1743083686085,0.00750169,2000.8,2000.7,6.03042427]
[1743083686297,1.69e-06,2000.8,2000.7,9.85812427]
[1743083686486,1.69e-06,2000.8,2000.7,12.31242427]
[1743083686682,1.69e-06,2000.8,2000.7,9.89042427]
[1743083686882,1.4208,2001.2,2000.7,8.89049427]
[1743083687082,0.99976,2001.1,2000.7,9.6653905]
[1743083687282,1.4208,2001.0,2000.9,0.99983]
[1743083687889,1.4208,2001.0,2000.9,1.82269427]
[1743083688090,1.4208,2001.0,2000.9,2.82252427]
[1743083688493,1.4208,2001.0,2000.9,1.69970712]
[1743083688891,1.4208,2001.0,2000.9,0.99983]
[1743083689497,0.0127137,2001.0,2000.9,0.99983]
[1743083690698,0.0127137,2001.0,2000.9,3.49983]
[1743083690999,0.0127137,2001.0,2000.9,4.14992509]
[1743083691198,0.0127137,2001.0,2000.9,1.64992509]
[1743083692798,0.0127137,2001.0,2000.9,6.90422509]
[1743083693898,0.0127137,2001.0,2000.9,6.25413]
[1743083695103,0.0127137,2001.0,2000.9,6.62795429]
[1743083695399,0.0127137,2001.0,2000.9,6.25413]
[1743083695997,0.0127137,2001.0,2000.9,2.40613]
[1743083696203,0.0127137,2001.0,2000.9,6.24213]
[1743083696904,0.0127137,2001.0,2000.9,8.74213]
[1743083697592,0.0127137,2001.0,2000.9,2.40613]
[1743083697797,0.0127137,2001.0,2000.9,6.23213]
[1743083698805,0.0127137,2001.0,2000.9,4.82583]
[1743083700499,0.0127137,2001.0,2000.9,5.47478971]
[1743083701094,3.2078,2002.6,2001.0,3.2078]
[1743083701294,3.8106,2002.5,2002.1,3.2078]
[1743083701502,3.8106,2002.5,2001.8,3.2078]
[1743083701695,3.2078,2002.3,2001.8,3.2078]
[1743083701894,1.3854,2002.2,2001.8,3.911]
[1743083702208,2.49832,2001.9,2001.2,3.2078]
[1743083702394,0.99944,2001.7,2001.3,0.9996]
[1743083702594,1.3854,2001.6,2001.3,3.2078]
[1743083702802,1.3854,2001.6,2001.5,0.99953]
[1743083703908,1.3854,2001.6,2001.5,2.31283]
[1743083704105,0.00500112,2002.2,2002.1,0.99923]
[1743083704306,0.00500112,2002.2,2001.8,7.1488]
[1743083704503,1.27680112,2002.2,2001.7,0.99942]
[1743083704699,3.2078,2002.0,2001.6,0.99945]
[1743083704912,0.99934,2001.9,2001.5,4.20729]
[1743083705110,1.2293,2001.9,2001.5,3.2078]
[1743083705301,1.2293,2001.9,2001.8,0.99938]
[1743083706012,1.27680112,2002.2,2001.8,3.2078]
[1743083706210,1.27680112,2002.2,2002.0,0.99925]
[1743083706509,1.27680112,2002.2,2001.8,3.2078]
[1743083706706,0.99924,2002.1,2001.8,0.99934]
[1743083707006,1.27680112,2002.2,2001.8,3.2078]
[1743083707205,1.27680112,2002.2,2002.1,0.99923]
[1743083707710,1.27680112,2002.2,2002.1,4.20703]
[1743083708211,2.58310112,2002.2,2002.1,4.20703]
[1743083708909,1.31130112,2002.2,2002.1,8.14503]
[1743083709607,3.81130112,2002.2,2001.5,3.2078]
[1743083709907,3.2078,2002.0,2001.7,0.99941]
[1743083710105,1.3063,2001.9,2001.8,0.99938]
[1743083711206,2.30564,2001.9,2001.5,3.2078]
[1743083711404,2.30564,2001.9,2001.4,3.97]
[1743083711609,1.3063,2001.9,2001.8,0.99938]
[1743083711798,2.30563,2001.9,2001.3,3.82314169]
[1743083712003,0.06795596,2001.6,2001.5,0.99953]
[1743083714309,1.30375596,2001.6,2001.5,0.99953]
[1743083716309,0.99958,2001.4,2001.3,0.00750169]
[1743083716712,0.99966,2001.3,2000.9,3.2078]
[1743083716904,1.2952,2001.3,2000.9,5.70736]
[1743083717113,0.06795596,2001.1,2001.0,0.99978]
[1743083717314,0.06795596,2001.1,2001.0,2.36808]